bitfinex-derivatives/quotes_BNBF0:USTF0_20250807
["timestamp","ask_amount","ask_price","bid_price","bid_amount"]
[1754564431305,0.86559025,777.77,777.09,0.85222405]
[1754564431605,0.86559025,777.77,777.08,0.85222405]
[1754564433105,0.86559025,777.78,777.08,0.85222405]
[1754564433406,0.22372659,778.3,776.75,0.22373019]
[1754564433407,0.86559025,777.92,776.99,0.85222405]
[1754564433701,0.86559025,777.92,776.98,0.85222405]
[1754564434405,0.86559025,777.93,776.98,0.85222405]
[1754564434605,0.86559025,777.92,776.98,0.85222405]
[1754564434804,0.86559025,777.93,776.97,0.85222405]
[1754564435001,0.86559025,777.82,777.05,0.85222405]
[1754564435506,0.86559025,777.87,777.02,0.85222405]
[1754564435903,0.86559025,777.88,777.04,0.85222405]
[1754564437207,0.86559025,777.88,777.03,0.85222405]
[1754564437702,0.86559025,777.88,777.04,0.85222405]
[1754564437907,0.86559025,777.88,777.03,0.85222405]
[1754564438207,0.86559025,777.88,777.04,0.85222405]
[1754564438407,0.86559025,777.89,777.03,0.85222405]
[1754564438605,0.86559025,777.92,777.01,0.85222405]
[1754564438804,0.86559025,777.91,777.0,0.85222405]
[1754564439007,0.86559025,777.94,776.99,0.85222405]
[1754564440510,0.86559025,777.93,776.99,0.85222405]
[1754564440710,0.86559025,777.91,776.97,0.85222405]
[1754564441111,0.86559025,777.92,776.98,0.85222405]
[1754564441306,0.86559025,777.9,776.99,0.85222405]
[1754564441506,0.86559025,777.89,777.0,0.85222405]
[1754564442208,0.86559025,777.89,776.75,0.22373019]
[1754564442209,0.86559025,777.82,776.93,0.85222405]
[1754564442411,0.86559025,777.83,776.93,0.85222405]
[1754564442606,0.86559025,777.82,776.93,0.85222405]
[1754564443010,0.86559025,777.82,776.75,0.22373019]
[1754564443011,0.86559025,777.84,776.95,0.85222405]
[1754564443507,0.86559025,777.85,776.96,0.85222405]
[1754564444609,0.86559025,777.84,776.96,0.85222405]
[1754564445715,0.86559025,777.85,776.95,0.85222405]
[1754564446014,0.86559025,777.85,776.96,0.85222405]
[1754564446314,0.86559025,777.8,776.99,0.85222405]
[1754564446510,0.86559025,777.79,777.0,0.85222405]
[1754564447613,0.86559025,777.8,777.0,0.85222405]
[1754564448114,0.86559025,777.79,777.0,0.85222405]
[1754564449117,0.86559025,777.79,777.01,0.85222405]
[1754564449616,0.86559025,777.79,777.0,0.85222405]
[1754564449817,0.86559025,777.79,777.01,0.85222405]
[1754564450915,0.86559025,777.78,777.0,0.85222405]
[1754564451617,0.86559025,777.78,777.01,0.85222405]
[1754564453414,0.86559025,777.78,777.02,0.85222405]
[1754564453814,0.86559025,777.78,777.01,0.85222405]
[1754564454316,0.86559025,777.76,777.03,0.85222405]
[1754564454512,0.86559025,777.75,777.03,0.85222405]
[1754564454919,0.86559025,777.76,777.03,0.85222405]
[1754564455119,0.86559025,777.78,777.01,0.85222405]
[1754564455415,0.86559025,777.77,777.02,0.85222405]
[1754564457422,0.86559025,777.76,777.02,0.85222405]
[1754564457725,0.86559025,777.77,777.02,0.85222405]
[1754564457923,0.86559025,777.76,777.02,0.85222405]
[1754564458324,0.86559025,777.76,777.03,0.85222405]
[1754564458524,0.86559025,777.76,776.86,1.1426031]
[1754564458525,0.86559025,777.77,777.02,0.85222405]
[1754564458925,0.86559025,777.79,777.01,0.85222405]
[1754564459826,0.86559025,777.78,777.03,0.85222405]
[1754564460024,0.86559025,777.82,777.07,0.85222405]
[1754564460924,0.86559025,777.81,777.08,0.85222405]
[1754564461227,0.86559025,777.82,777.09,0.85222405]
[1754564461824,0.86559025,777.85,777.08,0.85222405]
[1754564462428,0.86559025,778.02,776.96,0.85222405]
[1754564462629,1.097,778.08,777.14,0.85222405]
[1754564462825,1.097,778.08,777.13,0.85222405]
[1754564463330,1.097,778.08,777.14,0.85222405]
[1754564463827,1.097,778.08,777.16,0.85222405]
[1754564464536,1.097,778.08,777.11,0.85222405]
[1754564465230,1.097,778.08,777.12,0.85222405]
[1754564465732,0.86559025,778.07,777.15,0.85222405]
[1754564467437,1.96259025,778.08,777.15,0.85222405]
[1754564468337,1.96259025,778.08,776.75,0.22373019]
[1754564468338,0.86559025,777.96,777.22,0.85222405]
[1754564468637,0.86559025,777.94,777.2,0.85222405]
[1754564469333,0.86559025,777.92,777.22,0.85222405]
[1754564469531,0.86559025,777.95,777.2,0.85222405]
[1754564470234,0.86559025,777.92,777.18,0.85222405]
[1754564471434,0.86559025,777.9,777.16,0.85222405]
[1754564473538,0.86559025,777.91,777.16,0.85222405]
[1754564474642,0.86559025,777.9,777.16,0.85222405]
[1754564476239,0.86559025,777.92,777.15,0.85222405]
[1754564477543,0.86559025,777.94,777.14,0.85222405]
[1754564477840,0.86559025,777.94,777.13,0.85222405]
[1754564478339,0.86559025,777.96,777.11,0.85222405]
[1754564480146,0.86559025,778.0,777.08,0.85222405]
[1754564480346,0.86559025,778.01,777.07,0.85222405]
[1754564480645,0.86559025,778.05,777.11,0.85222405]
[1754564482246,0.86559025,778.03,777.1,0.85222405]
[1754564482645,0.86559025,778.03,776.75,0.22373019]
[1754564482646,0.86559025,777.99,777.05,0.85222405]
[1754564482942,0.86559025,777.98,777.05,0.85222405]
[1754564484147,0.86559025,777.97,777.06,0.85222405]
[1754564484945,0.86559025,777.94,777.08,0.85222405]
[1754564485343,0.86559025,777.92,777.09,0.85222405]
[1754564485943,0.86559025,777.89,777.11,0.85222405]
[1754564486646,0.86559025,777.87,777.09,0.85222405]
[1754564486849,0.86559025,777.86,777.09,0.85222405]
[1754564487745,0.86559025,777.85,777.08,0.85222405]
[1754564489252,0.86559025,777.84,777.07,0.85222405]
[1754564489449,1.041,777.84,777.08,0.85222405]
[1754564489650,1.90659025,777.84,777.08,0.85222405]
[1754564489847,1.90659025,777.84,777.07,0.85222405]
[1754564490752,0.86559025,777.81,777.09,0.85222405]
[1754564492749,0.86559025,777.81,777.1,0.85222405]
[1754564493253,1.90659025,777.84,777.07,0.85222405]
[1754564493449,0.86559025,777.83,777.07,0.85222405]
[1754564493753,1.90659025,777.84,777.07,0.85222405]
[1754564494049,1.041,777.84,777.04,0.85222405]
[1754564494250,1.041,777.84,777.01,0.85222405]
[1754564494453,1.041,777.84,776.99,0.85222405]
[1754564494650,1.90659025,777.84,776.98,0.85222405]
[1754564496654,1.041,777.84,776.97,0.85222405]
[1754564497054,1.041,777.84,776.96,0.85222405]
[1754564498351,1.041,777.84,776.94,0.85222405]
[1754564498854,1.041,777.84,776.95,0.85222405]
[1754564499653,1.041,777.84,776.82,0.85222405]
[1754564500053,1.041,777.84,776.75,0.22373019]
[1754564501354,0.86559025,777.83,776.75,0.22373019]
[1754564501952,0.86559025,777.69,776.75,0.22373019]
[1754564502155,0.86559025,777.7,776.76,0.85222405]
[1754564502353,0.86559025,777.71,776.75,1.07595424]
[1754564502654,0.86559025,777.7,776.75,1.07595424]
[1754564503059,0.86559025,777.7,776.76,0.85222405]
[1754564503557,0.86559025,777.7,776.75,1.07595424]
[1754564504359,0.86559025,777.71,776.75,0.22373019]
[1754564505459,0.86559025,777.72,776.75,0.22373019]
[1754564506461,0.86559025,777.73,776.75,0.22373019]
[1754564506760,0.86559025,777.75,776.75,0.22373019]
[1754564508364,0.86559025,777.81,776.75,0.22373019]
[1754564509162,0.86559025,777.79,776.75,0.22373019]
[1754564509365,0.86559025,777.78,776.75,0.22373019]
[1754564509668,0.86559025,777.79,776.75,0.22373019]
[1754564510666,0.86559025,777.76,776.75,0.22373019]
[1754564511664,0.86559025,777.8,776.75,0.22373019]
[1754564511862,0.86559025,777.79,776.75,0.22373019]
[1754564512268,0.86559025,777.73,776.75,0.22373019]
[1754564512468,0.86559025,777.74,776.75,0.22373019]
[1754564512664,1.122,777.72,776.75,0.22373019]
[1754564512865,1.122,777.72,776.75,1.07595424]
[1754564513266,1.122,777.72,776.75,0.22373019]
[1754564515269,1.122,777.72,776.75,1.07595424]
[1754564515470,1.122,777.72,776.77,0.85222405]
[1754564515871,1.122,777.72,776.76,0.85222405]
[1754564516373,1.122,777.72,776.77,0.85222405]
[1754564517271,1.122,777.72,776.75,0.22373019]
[1754564517473,1.122,777.72,776.77,0.85343661]
[1754564518573,1.122,777.72,776.75,0.22373019]
[1754564520475,1.122,777.72,776.83,0.85343661]
[1754564520675,1.122,777.72,776.86,0.85343661]
[1754564520973,1.122,777.72,776.87,0.85343661]
[1754564521577,1.122,777.72,777.02,0.85343661]
[1754564521772,1.122,777.72,777.08,0.85343661]
[1754564522277,1.122,777.72,777.07,0.85343661]
[1754564522472,1.122,777.72,777.06,0.85343661]
[1754564522671,1.122,777.72,776.99,0.85343661]
[1754564523277,1.122,777.72,776.97,0.85343661]
[1754564523977,1.122,777.72,776.94,0.85343661]
[1754564525378,1.122,777.72,776.95,0.85343661]
[1754564527381,1.122,777.72,776.94,0.85343661]
[1754564529982,1.122,777.72,776.89,0.85343661]
[1754564530181,1.122,777.72,776.86,0.85343661]
[1754564531382,1.122,777.72,776.84,0.85343661]
[1754564532482,1.122,777.72,776.83,0.85343661]
[1754564533379,1.122,777.72,776.84,0.85343661]
[1754564536590,1.122,777.72,776.81,0.85343661]
[1754564536993,1.122,777.72,776.79,0.85343661]
[1754564537891,1.122,777.72,776.87,0.85343661]
[1754564538191,1.122,777.72,776.88,0.85343661]
[1754564538397,1.122,777.72,776.86,0.85343661]
[1754564538592,1.122,777.72,776.85,0.85343661]
[1754564538894,1.122,777.72,776.84,0.85343661]
[1754564539692,1.122,777.72,776.77,0.85343661]
[1754564540897,1.122,777.72,776.78,0.85343661]
[1754564541700,1.122,777.72,776.8,0.85343661]
[1754564542192,1.122,777.72,776.75,0.22373019]
[1754564542193,1.98540676,777.72,776.81,0.85343661]
[1754564542593,0.86340676,777.7,776.82,0.85343661]
[1754564542793,0.86340676,777.71,776.82,0.85343661]
[1754564542999,1.122,777.72,776.83,0.85343661]
[1754564543500,1.122,777.72,776.84,0.85343661]
[1754564543899,1.122,777.72,776.83,0.85343661]
[1754564544099,1.122,777.72,776.87,0.85343661]
[1754564546097,1.122,777.72,776.91,0.85343661]
[1754564546797,1.122,777.72,776.93,0.85343661]
[1754564547098,1.122,777.72,776.81,0.85343661]
[1754564547598,1.122,777.72,776.8,0.85343661]
[1754564551205,1.122,777.72,776.81,0.85343661]
[1754564552201,1.122,777.72,776.8,0.85343661]
[1754564552702,1.122,777.72,776.89,0.85343661]
[1754564553408,1.122,777.72,776.92,0.85343661]
[1754564553802,0.86340676,777.88,776.92,0.85343661]
[1754564554403,0.86340676,777.89,776.93,0.85343661]
[1754564555301,0.86340676,777.9,776.93,0.85343661]
[1754564555510,0.86340676,777.91,776.94,0.85343661]
[1754564555803,0.86340676,777.91,776.95,0.85343661]
[1754564556000,0.86340676,777.91,776.75,0.22373019]
[1754564556001,0.86340676,777.89,776.96,0.85343661]
[1754564556206,0.86340676,777.88,776.96,0.85343661]
[1754564556404,2.09840676,777.88,776.96,0.85343661]
[1754564557008,0.86340676,777.87,776.96,0.85343661]
[1754564557209,0.86340676,777.87,776.97,0.85343661]
[1754564557510,0.86340676,777.86,776.97,0.85343661]
[1754564558410,0.86340676,777.87,776.96,0.85343661]
[1754564559407,0.86340676,777.85,776.98,0.85343661]
[1754564559707,0.86340676,777.85,776.97,0.85343661]
[1754564559913,0.86340676,777.86,776.98,0.85343661]
[1754564560309,0.86340676,777.85,776.97,0.85343661]
[1754564560512,0.86340676,777.86,776.98,0.85343661]
[1754564560909,0.86340676,777.85,776.97,0.85343661]
[1754564561508,0.86340676,777.85,776.98,0.85343661]
[1754564562214,0.86340676,777.86,776.97,0.85343661]
[1754564565013,0.86340676,777.86,776.98,0.85343661]
[1754564566416,0.86340676,777.85,776.98,0.85343661]
[1754564566616,0.86340676,777.86,776.98,0.85343661]
[1754564566817,0.86340676,777.83,777.0,0.85343661]
[1754564567415,0.86340676,777.82,777.0,0.85343661]
[1754564568116,0.86340676,777.83,777.0,0.85343661]
[1754564568920,0.86340676,777.83,776.99,0.85343661]
[1754564569417,0.86340676,777.83,777.0,0.85343661]
[1754564569619,0.86340676,777.82,777.0,0.85343661]
[1754564570018,0.86340676,777.83,777.0,0.85343661]
[1754564570319,0.86340676,777.83,777.01,0.85343661]
[1754564570522,0.86340676,777.83,777.0,0.85343661]
[1754564571217,0.86340676,777.82,777.0,0.85343661]
[1754564571421,0.86340676,777.82,776.82,1.1426031]
[1754564571422,0.86340676,777.82,777.01,0.85343661]
[1754564572120,0.86340676,777.81,777.02,0.85343661]
[1754564573122,0.86340676,777.8,777.02,0.85343661]
[1754564573322,0.86340676,777.83,777.01,0.85343661]
[1754564574520,0.86340676,777.82,777.01,0.85343661]
[1754564574723,0.86340676,777.83,777.02,0.85343661]
[1754564575421,0.86340676,777.82,777.02,0.85343661]
[1754564576824,0.86340676,777.81,777.03,0.85343661]
[1754564577530,0.86340676,777.8,777.03,0.85343661]
[1754564578330,0.86340676,777.81,777.03,0.85343661]
[1754564578827,0.86340676,777.82,777.03,0.85343661]
[1754564579131,0.86340676,777.81,777.03,0.85343661]
[1754564579327,0.86340676,777.81,777.04,0.85343661]
[1754564579834,0.86340676,777.79,777.05,0.85343661]
[1754564581534,0.86340676,777.78,777.06,0.85343661]
[1754564582129,0.86340676,777.77,777.06,0.85343661]
[1754564582733,1.259,777.76,777.06,0.85343661]
[1754564586532,2.12240676,777.76,777.07,0.85343661]
[1754564586936,2.12240676,777.76,777.06,0.85343661]
[1754564587335,1.259,777.76,777.04,0.85343661]
[1754564587836,1.259,777.76,777.03,0.85343661]
[1754564588640,1.259,777.76,777.02,0.85343661]
[1754564589042,1.259,777.76,777.0,0.85343661]
[1754564589236,1.259,777.76,776.99,0.85343661]
[1754564589540,1.259,777.76,777.0,0.85343661]
[1754564589737,1.259,777.76,776.99,0.85343661]
[1754564590041,1.259,777.76,777.0,0.85343661]
[1754564590741,1.259,777.76,777.01,0.85343661]
[1754564591338,2.12240676,777.76,777.03,0.85343661]
[1754564591838,0.86340676,777.75,777.03,0.85343661]
[1754564592040,0.86340676,777.75,776.75,0.22373019]
[1754564592041,2.12240676,777.76,777.02,0.85343661]
[1754564592843,0.86340676,777.73,777.04,0.85343661]
[1754564593039,0.86340676,777.74,777.04,0.85343661]
[1754564593239,2.12240676,777.76,777.02,0.85343661]
[1754564594842,0.86340676,777.76,777.02,0.85343661]
[1754564596446,0.86340676,777.77,777.02,0.85343661]
[1754564597042,0.86340676,777.78,777.02,0.85343661]
[1754564597247,0.86340676,777.78,777.01,0.85343661]
[1754564598045,0.86340676,777.78,777.02,0.85343661]
[1754564598249,0.86340676,777.79,777.0,0.85343661]
[1754564598450,0.86340676,777.77,777.02,0.85343661]
[1754564598650,0.86340676,777.79,777.01,0.85343661]
[1754564599449,0.86340676,777.79,777.0,0.85343661]
[1754564600153,0.86340676,777.79,777.01,0.85343661]
[1754564601347,0.86340676,777.78,777.01,0.85343661]
[1754564601548,0.86340676,777.78,777.02,0.85343661]
[1754564602152,0.86340676,777.77,777.03,0.85343661]
[1754564602553,0.86340676,777.76,777.03,0.85343661]
[1754564602754,0.86340676,777.74,777.04,0.85343661]
[1754564603155,0.86340676,777.71,777.07,0.85343661]
[1754564603554,1.118,777.7,777.07,0.85343661]
[1754564604355,1.118,777.7,777.05,0.85343661]
[1754564604556,1.118,777.7,777.06,0.85343661]
[1754564604958,1.118,777.7,777.04,0.85343661]
[1754564606153,1.118,777.7,777.05,0.85343661]
[1754564606455,1.118,777.7,777.1,0.85343661]
[1754564606859,1.118,777.7,777.09,0.85343661]
[1754564607258,1.118,777.7,777.11,0.85343661]
[1754564607654,1.118,777.7,777.1,0.85343661]
[1754564608360,1.118,777.7,777.11,0.85343661]
[1754564608759,1.118,777.7,777.1,0.85343661]
[1754564609261,1.118,777.7,777.12,0.85343661]
[1754564609458,1.118,777.7,777.14,0.85343661]
[1754564610056,1.118,777.7,777.16,0.85343661]
[1754564610260,1.118,777.7,777.15,0.85343661]
[1754564611062,1.118,777.7,777.14,0.85343661]
[1754564611456,1.118,777.7,777.15,0.85343661]
[1754564612564,1.118,777.7,777.14,0.85343661]
[1754564613263,1.118,777.7,777.13,0.85343661]
[1754564613860,1.118,777.7,777.14,0.85343661]
[1754564614164,1.118,777.7,777.15,0.85343661]
[1754564614460,1.118,777.7,777.14,0.85343661]
[1754564614960,1.118,777.7,777.15,0.85343661]
[1754564615365,1.118,777.7,777.16,0.85343661]
[1754564615564,0.86340676,777.92,777.15,0.85343661]
[1754564615766,0.86340676,777.91,777.16,0.85343661]
[1754564616264,0.86340676,777.92,777.17,0.85343661]
[1754564616867,0.86340676,777.92,777.18,0.85343661]
[1754564617467,0.86340676,777.95,777.16,0.85343661]
[1754564617669,0.86340676,778.06,777.26,0.85343661]
[1754564618366,0.86340676,778.1,777.29,0.85343661]
[1754564618567,0.86340676,778.12,777.26,0.85343661]
[1754564618966,0.86340676,778.12,776.83,0.22377478]
[1754564618967,0.86340676,778.13,777.27,0.85343661]
[1754564619167,0.86340676,778.12,777.28,0.85343661]
[1754564619371,0.86340676,778.11,777.27,0.85343661]
[1754564619667,0.86340676,778.14,777.28,0.85343661]
[1754564620270,0.86340676,778.2,777.34,0.85343661]
[1754564620465,0.86340676,778.22,777.33,0.85343661]
[1754564620665,0.86340676,778.22,777.32,0.85343661]
[1754564620970,0.86340676,778.18,777.35,0.85343661]
[1754564621370,0.86340676,778.19,777.34,0.85343661]
[1754564622072,0.86340676,778.2,777.35,0.85343661]
[1754564622271,0.86340676,778.2,777.34,0.85343661]
[1754564622471,0.86340676,778.21,777.33,0.85343661]
[1754564623271,0.86340676,778.18,777.35,0.85343661]
[1754564623571,0.86340676,778.2,777.35,0.85343661]
[1754564624467,0.86340676,778.21,777.34,0.85343661]
[1754564625469,0.86340676,778.22,777.33,0.85343661]
[1754564626473,0.86340676,778.24,777.32,0.85343661]
[1754564626773,0.86340676,778.2,777.24,0.85343661]
[1754564627271,0.86340676,778.21,777.24,0.85343661]
[1754564627471,0.86340676,778.21,777.23,0.85343661]
[1754564628174,0.86340676,778.22,777.23,0.85343661]
[1754564628575,0.86340676,778.23,777.22,0.85343661]
[1754564628775,0.86340676,778.21,777.23,0.85343661]
[1754564628975,0.86340676,778.18,777.25,0.85343661]
[1754564629174,0.86340676,778.19,777.25,0.85343661]
[1754564630478,0.86340676,778.2,777.25,0.85343661]
[1754564631476,0.86340676,778.21,777.24,0.85343661]
[1754564632173,1.226,778.2,777.24,0.85343661]
[1754564633373,1.226,778.2,777.23,0.85343661]
[1754564633876,1.226,778.2,777.22,0.85343661]
[1754564635880,1.226,778.2,777.23,0.85343661]
[1754564636476,1.226,778.2,777.22,0.85343661]
[1754564638479,1.226,778.2,777.23,0.85343661]
[1754564638783,1.226,778.2,777.22,0.85343661]
[1754564639984,1.226,778.2,777.23,0.85343661]
[1754564640385,0.86340676,778.17,777.26,0.85343661]
[1754564640986,1.226,778.2,777.19,0.85343661]
[1754564641886,1.226,778.2,777.17,0.85343661]
[1754564647791,1.226,778.2,777.16,0.85343661]
[1754564647987,1.226,778.2,777.19,0.85343661]
[1754564648489,1.226,778.2,777.2,0.85343661]
[1754564649195,1.226,778.2,777.22,0.85343661]
[1754564650396,1.226,778.2,777.27,0.85343661]
[1754564651590,1.226,778.2,777.28,0.85343661]
[1754564653398,1.226,778.2,777.3,0.85343661]
[1754564654098,1.226,778.2,777.28,0.85343661]
[1754564654394,1.226,778.2,777.29,0.85343661]
[1754564656704,1.226,778.2,777.27,0.85343661]
[1754564656897,1.226,778.2,777.22,0.85343661]
[1754564657493,1.226,778.2,777.23,0.85343661]
[1754564657998,1.226,778.2,777.21,0.85343661]
[1754564658497,1.226,778.2,777.22,0.85343661]
[1754564659293,1.226,778.2,777.23,0.85343661]
[1754564659497,1.226,778.2,777.03,1.1426031]
[1754564659498,1.226,778.2,777.11,0.85343661]
[1754564659798,1.226,778.2,777.09,0.85343661]
[1754564659999,0.86340676,778.36,777.09,0.85343661]
[1754564660296,0.86340676,778.35,777.09,0.85343661]
[1754564661392,0.86340676,778.35,777.1,0.85343661]
[1754564661895,1.15,778.34,777.1,0.85343661]
[1754564662395,2.01340676,778.34,777.1,0.85343661]
[1754564662595,2.01340676,778.34,777.11,0.85343661]
[1754564663400,0.86340676,778.33,777.11,0.85343661]
[1754564663599,0.86340676,778.33,777.12,0.85343661]
[1754564664396,0.86340676,778.32,777.13,0.85343661]
[1754564665200,0.86340676,778.31,777.13,0.85343661]
[1754564665401,0.86340676,778.3,777.14,0.85343661]
[1754564665601,0.86340676,778.29,777.15,0.85343661]
[1754564666898,0.86340676,778.24,777.18,0.85343661]
[1754564667100,0.86340676,778.09,777.28,0.85343661]
[1754564667301,0.86340676,778.08,777.29,0.85343661]
[1754564667501,0.86340676,778.07,777.29,0.85343661]
[1754564668099,0.86340676,778.04,777.32,0.85343661]
[1754564668399,0.86340676,778.04,776.83,0.22377478]
[1754564668400,0.86340676,778.05,777.31,0.85343661]
[1754564669003,0.86340676,778.04,777.32,0.85343661]
[1754564669203,0.86340676,778.06,777.31,0.85343661]
[1754564669404,0.86340676,778.05,777.31,0.85343661]
[1754564670101,0.86340676,778.06,777.31,0.85343661]
[1754564670500,0.86340676,778.05,777.31,0.85343661]
[1754564671004,1.15,778.34,777.31,0.85343661]
[1754564671005,0.86340676,778.06,777.31,0.85343661]
[1754564671201,0.86340676,778.04,777.32,0.85343661]
[1754564671404,0.86340676,778.03,777.32,0.85343661]
[1754564671606,0.86340676,778.05,777.31,0.85343661]
[1754564672205,0.86340676,778.04,777.32,0.85343661]
[1754564672400,0.86340676,778.03,777.33,0.85343661]
[1754564673505,0.86340676,778.02,777.34,0.85343661]
[1754564674699,0.86340676,778.02,777.35,0.85343661]
[1754564675405,0.86340676,778.01,777.36,0.85343661]
[1754564675705,0.86340676,778.01,777.35,0.85343661]
[1754564676505,0.86340676,778.0,777.36,0.85343661]
[1754564677604,0.86340676,777.99,777.37,0.85343661]
[1754564678112,0.86340676,777.99,777.38,0.85343661]
[1754564678309,0.86340676,778.0,777.37,0.85343661]
[1754564679514,0.86340676,777.99,777.37,0.85343661]
[1754564680610,0.86340676,778.0,777.37,0.85343661]
[1754564680915,0.86340676,777.99,777.38,0.85343661]
[1754564681514,0.86340676,777.97,777.39,0.85343661]
[1754564682115,0.86340676,777.98,777.39,0.85343661]
[1754564682314,0.86340676,777.97,777.4,0.85343661]
[1754564682616,0.86340676,777.97,777.39,0.85343661]
[1754564682812,0.86340676,777.97,777.4,0.85343661]
[1754564684612,0.86340676,777.96,777.4,0.85343661]
[1754564684814,0.86340676,777.97,777.4,0.85343661]
[1754564685415,0.86340676,777.96,777.41,0.85343661]
[1754564685715,0.86340676,777.96,777.4,0.85343661]
[1754564685911,0.86340676,777.96,777.41,0.85343661]
[1754564686412,0.86340676,777.97,777.4,0.85343661]
[1754564686616,0.86340676,777.98,777.4,0.85343661]
[1754564688116,0.86340676,777.96,777.41,0.85343661]
[1754564689711,0.86340676,777.97,777.4,0.85343661]
[1754564690519,0.86340676,777.96,777.41,0.85343661]
[1754564691922,0.86340676,777.97,777.4,0.85343661]
[1754564694620,0.86340676,777.96,777.4,0.85343661]
[1754564695017,0.86340676,777.99,777.38,0.85343661]
[1754564695623,0.86704454,777.99,777.38,0.85453332]
[1754564696522,0.86704454,777.98,777.38,0.85453332]
[1754564698323,0.86704454,777.99,777.37,0.85453332]
[1754564698723,0.86704454,778.0,777.37,0.85453332]
[1754564700726,0.86704454,777.99,777.37,0.85453332]
[1754564701126,0.86704454,778.0,777.37,0.85453332]
[1754564703328,0.86704454,777.98,777.39,0.85453332]
[1754564703622,0.86704454,777.98,777.38,0.85453332]
[1754564705224,0.86704454,777.99,777.38,0.85453332]
[1754564705527,0.86704454,778.01,777.37,0.85453332]
[1754564705723,1.25,778.0,777.37,0.85453332]
[1754564706729,2.11704454,778.0,777.37,0.85453332]
[1754564709729,0.86704454,777.99,777.37,0.85453332]
[1754564710928,2.11704454,778.0,777.37,0.85453332]
[1754564713428,0.86704454,777.99,777.38,0.85453332]
[1754564713933,1.25,778.0,777.35,0.85453332]
[1754564714327,1.25,778.0,777.53,0.85453332]
[1754564715234,1.25,778.0,777.52,0.85453332]
[1754564717237,1.25,778.0,777.51,0.85453332]
[1754564717439,1.25,778.0,777.62,0.85453332]
[1754564718132,1.25,778.0,777.6,0.85453332]
[1754564718337,1.25,778.0,777.54,0.85453332]
[1754564719337,1.25,778.0,777.52,0.85453332]
[1754564720235,1.25,778.0,777.51,0.85453332]
[1754564721238,1.25,778.0,777.5,0.85453332]
[1754564722142,1.25,778.0,777.49,0.85453332]
[1754564723039,1.25,778.0,777.48,0.85453332]
[1754564723243,1.25,778.0,777.47,0.85453332]
[1754564724339,1.25,778.0,777.46,0.85453332]
[1754564726140,1.25,778.0,777.45,0.85453332]
[1754564726346,1.25,778.0,777.43,0.85453332]
[1754564727242,1.25,778.0,777.47,0.85453332]
[1754564728249,1.25,778.0,777.5,0.85453332]
[1754564728546,1.25,778.0,777.49,0.85453332]
[1754564728744,1.25,778.0,777.5,0.85453332]
[1754564728946,1.25,778.0,777.49,0.85453332]
[1754564729746,1.25,778.0,777.44,0.85453332]
[1754564729949,1.25,778.0,777.38,0.85453332]
[1754564730251,1.25,778.0,777.37,0.85453332]
[1754564730652,1.25,778.0,777.38,0.85453332]
[1754564730950,1.25,778.0,777.3,0.85453332]
[1754564731151,1.25,778.0,777.27,0.85453332]
[1754564731350,1.25,778.0,777.22,0.85453332]
[1754564732247,1.25,778.0,777.23,0.85453332]
[1754564732451,1.25,778.0,777.22,0.85453332]
[1754564732749,1.25,778.0,777.19,0.85453332]
[1754564733250,1.25,778.0,777.05,0.85453332]
[1754564733850,1.25,778.0,777.04,0.85453332]
[1754564735156,1.25,778.0,777.03,0.85453332]
[1754564735555,1.25,778.0,777.04,0.85453332]
[1754564736151,1.25,778.0,777.03,0.85453332]
[1754564736356,1.25,778.0,777.0,0.85453332]
[1754564736557,1.25,778.0,776.97,0.85453332]
[1754564736757,1.25,778.0,776.93,0.85453332]
[1754564736958,0.86704454,777.99,776.86,0.85453332]
[1754564737158,0.86704454,777.99,776.84,0.85453332]
[1754564737653,0.86704454,777.98,776.84,0.85453332]
[1754564738054,0.86704454,777.99,776.84,0.85453332]
[1754564738354,2.11704454,778.0,776.83,1.0783081]
[1754564738851,0.86704454,777.95,776.87,0.85453332]
[1754564739053,0.86704454,777.96,776.87,0.85453332]
[1754564739452,0.86704454,777.94,776.88,0.85453332]
[1754564740155,0.86704454,777.95,776.88,0.85453332]
[1754564740555,0.86704454,777.94,776.87,0.85453332]
[1754564741258,0.86704454,777.96,776.85,0.85453332]
[1754564742160,0.86704454,777.97,776.84,0.85453332]
[1754564742956,0.86704454,777.95,776.83,1.0783081]
[1754564743159,0.86704454,777.96,776.83,0.22377478]
[1754564743459,1.25,778.0,776.83,0.22377478]
[1754564743460,0.86704454,777.98,776.84,0.85453332]
[1754564743655,2.11704454,778.0,776.83,1.0783081]
[1754564744359,1.25,778.0,776.83,0.22377478]
[1754564744860,2.11704454,778.0,776.83,1.0783081]
[1754564745060,1.25,778.0,776.83,1.0783081]